bitfinex/quotes_ETHUSD_20220227
["timestamp","ask_amount","ask_price","bid_price","bid_amount"]
[1645990343494,0.02450777,2676.1,2674.7,1.26708768]
[1645990343698,0.93569,2675.7,2674.6,0.25]
[1645990343899,32.0991055,2675.6,2674.6,0.25]
[1645990344156,2.01912688,2675.5,2674.6,0.25]
[1645990344355,0.439,2675.5,2674.6,0.25]
[1645990344951,0.93593,2675.4,2675.0,1.15852566]
[1645990345159,0.02450777,2676.1,2674.8,0.9354642]
[1645990346056,0.02450777,2676.1,2674.6,0.25]
[1645990346057,0.1494,2676.0,2674.6,0.25]
[1645990346271,0.5884,2676.0,2675.2,0.01626355]
[1645990346462,3.5,2675.9,2675.2,0.01626355]
[1645990346967,0.02450777,2676.1,2675.2,0.01626355]
[1645990346968,0.02450777,2676.1,2675.2,5.01626355]
[1645990347160,0.02450777,2676.1,2675.2,0.9353169]
[1645990347358,0.02450777,2676.1,2675.7,2.15845122]
[1645990347558,0.02450777,2676.1,2675.3,0.00487888]
[1645990347766,0.1494,2676.0,2675.3,0.00487888]
[1645990348197,0.02450777,2676.1,2675.3,0.00487888]
[1645990348198,1.87133,2675.8,2675.3,0.00487888]
[1645990348397,0.00673696,2675.4,2674.6,0.25]
[1645990348600,0.00673696,2675.4,2674.9,1.08973113]
[1645990348801,0.00673696,2675.4,2675.1,0.00292751]
[1645990349599,0.00673696,2675.4,2674.9,1.08973113]
[1645990349800,3.696e-05,2675.4,2675.1,0.9353504]
[1645990350001,0.00656022,2675.5,2675.1,0.9353504]
[1645990350202,0.00656022,2675.5,2675.2,3.5]
[1645990350405,0.00656022,2675.5,2675.3,3.1101]
[1645990350608,0.00656022,2675.5,2675.3,4.43548699]
[1645990351006,0.00656022,2675.5,2675.4,0.1495]
[1645990351406,0.00572023,2675.5,2675.4,0.1495]
[1645990352753,0.00572023,2675.5,2674.9,0.01236154]
[1645990352956,11.99574,2675.3,2674.9,0.01236154]
[1645990353151,0.00572023,2675.5,2674.9,0.01236154]
[1645990353552,0.00572023,2675.5,2674.6,0.25]
[1645990353553,0.00572023,2675.5,2675.0,1.42070833]
[1645990353752,0.00572023,2675.5,2675.1,0.3646]
[1645990353952,0.02450777,2676.1,2675.1,5.5141]
[1645990353953,5.835e-05,2675.3,2675.1,5.5141]
[1645990354151,5.835e-05,2675.3,2675.2,5.3646]
[1645990354352,5.835e-05,2675.3,2675.0,1.87046]
[1645990354754,5.835e-05,2675.3,2674.9,0.939321]
[1645990354954,5.835e-05,2675.3,2674.9,0.004111]
[1645990355153,5.835e-05,2675.3,2674.7,0.00246685]
[1645990355419,11.4246,2675.1,2674.7,0.00246685]
[1645990355621,11.4246,2675.1,2674.2,0.007]
[1645990355622,11.8636,2675.0,2674.2,0.007]
[1645990355914,0.439,2675.0,2674.2,0.007]
[1645990356111,0.439,2675.0,2674.3,1.29316914]
[1645990356313,1.87175,2675.2,2674.2,0.007]
[1645990356513,0.439,2675.1,2674.2,0.007]
[1645990356711,0.439,2675.1,2674.0,2.56449997]
[1645990357317,0.93585,2675.0,2674.0,2.56449997]
[1645990357517,4.13007495,2674.9,2674.0,2.56449997]
[1645990357718,11.4246,2674.7,2674.0,2.56449997]
[1645990357917,1.87226,2674.8,2674.0,2.56449997]
[1645990358124,0.439,2675.2,2674.0,2.56449997]
[1645990358518,4.43583,2675.1,2674.1,0.00403907]
[1645990358718,11.4246,2674.6,2674.1,0.00403907]
[1645990359346,0.3646,2674.6,2673.7,0.1494]
[1645990359548,0.439,2675.0,2673.7,0.1494]
[1645990359748,11.8636,2675.0,2674.1,0.01134996]
[1645990360354,11.8636,2675.0,2673.3,0.25]
[1645990360355,0.3646,2674.1,2672.8,0.00221199]
[1645990360555,5.93649,2673.8,2672.8,0.00221199]
[1645990360761,5.93649,2673.8,2672.0,0.00102]
[1645990360762,0.01246046,2673.4,2672.5,0.20221199]
[1645990360956,11.4246,2673.2,2672.5,0.05221199]
[1645990361253,0.3646,2673.2,2672.5,0.05221199]
[1645990361455,3.5,2674.1,2672.5,0.05221199]
[1645990361456,3.5,2673.1,2672.5,0.05221199]
[1645990361660,0.3646,2672.8,2672.0,0.00102]
[1645990361854,0.7867,2672.9,2672.0,0.00102]
[1645990362056,3.5,2674.0,2672.2,0.3646]
[1645990362253,4.24751,2674.7,2672.1,1.88463253]
[1645990362254,0.1432,2674.5,2672.3,3.5]
[1645990362454,11.06,2674.6,2672.3,3.5]
[1645990362455,0.1496,2673.9,2672.9,0.54]
[1645990362658,0.97773208,2674.6,2673.0,4.4360899]
[1645990362904,0.1496,2675.0,2673.1,1.87188]
[1645990362905,3.5,2674.5,2673.1,1.87188]
[1645990363110,0.1496,2675.0,2673.2,8.8646]
[1645990363311,0.01787373,2675.2,2673.4,0.3646]
[1645990363312,0.1494,2675.1,2673.4,0.3646]
[1645990363507,0.00558523,2675.2,2674.0,0.3646]
[1645990363705,2.80804,2675.4,2674.0,0.3646]
[1645990363706,0.00557223,2674.9,2674.8,1.02320163]
[1645990363911,0.00557223,2674.9,2673.6,0.25]
[1645990363912,0.00557223,2674.9,2673.7,0.1494]
[1645990364112,0.00557223,2674.9,2673.6,0.25]
[1645990364306,0.3646,2674.8,2673.6,0.25]
[1645990364511,0.439,2674.8,2673.2,2.9473]
[1645990364711,1.23589,2674.7,2673.3,0.93599]
[1645990364915,1.23589,2674.7,2673.0,3.75]
[1645990364916,0.01261092,2673.9,2673.7,0.00717592]
[1645990365112,0.01261092,2673.9,2672.9,0.54]
[1645990365113,0.01162396,2673.4,2672.9,0.54]
[1645990365409,11.06,2673.1,2672.9,0.54]
[1645990365609,0.3646,2673.2,2672.9,0.54]
[1645990366209,0.93665,2673.3,2672.9,0.54]
[1645990366413,0.01162396,2673.4,2672.9,0.54]
[1645990366646,1.01162396,2673.4,2672.9,0.54]
[1645990366945,0.01162396,2673.4,2672.9,0.54]
[1645990367146,0.01162396,2673.4,2673.0,1.07068006]
[1645990367549,0.01162396,2673.4,2673.0,1.43528006]
[1645990367950,2.396e-05,2673.4,2673.1,0.1496]
[1645990368354,2.396e-05,2673.4,2673.1,0.93599]
[1645990368557,2.396e-05,2673.4,2672.9,0.54]
[1645990368954,2.396e-05,2673.4,2672.9,0.84]
[1645990369154,2.396e-05,2673.4,2673.0,2.8715]
[1645990369555,2.396e-05,2673.4,2673.0,5.6794906]
[1645990370055,2.396e-05,2673.4,2673.2,1.23867099]
[1645990370255,2.396e-05,2673.4,2673.3,0.3646]
[1645990370700,2.396e-05,2673.4,2673.3,0.6646]
[1645990370906,0.00525272,2674.6,2673.6,0.3646]
[1645990370907,9.811e-05,2673.9,2673.6,0.3646]
[1645990371100,9.811e-05,2673.9,2673.6,0.3146]
[1645990371503,9.811e-05,2673.9,2673.5,2.8071767]
[1645990371702,0.01271519,2675.1,2673.5,14.0]
[1645990371703,0.01247225,2675.1,2673.5,14.0]
[1645990371899,0.01247225,2675.1,2673.1,0.9360702]
[1645990371900,1.43313299,2673.3,2673.1,0.9360702]
[1645990372099,3.939,2674.8,2673.1,1.2360702]
[1645990372299,0.439,2675.0,2673.5,1.87157]
[1645990372499,14.56,2675.4,2673.7,0.3646]
[1645990372500,0.1494,2674.9,2673.7,0.3646]
[1645990372700,0.8036,2675.3,2673.8,0.3646]
[1645990372701,3.6494,2675.2,2673.8,0.3646]
[1645990372904,3.6494,2675.2,2674.9,1.05941013]
[1645990372905,0.1494,2675.2,2674.9,1.05941013]
[1645990373108,0.1494,2675.2,2674.0,0.3646]
[1645990373109,0.1494,2675.7,2674.2,0.6146]
[1645990373302,0.1494,2676.0,2674.2,0.6146]
[1645990373506,0.1494,2676.0,2674.3,0.3646]
[1645990373904,0.1494,2676.0,2674.8,0.3646]
[1645990374140,0.1494,2676.0,2675.5,1.19706488]
[1645990374342,0.02450777,2676.1,2675.0,0.3646]
[1645990374545,0.90935422,2677.3,2674.7,2.8907]
[1645990374546,0.1495,2676.0,2675.3,5.0063]
[1645990374752,0.3646,2677.5,2675.3,5.0063]
[1645990374947,0.1493,2677.2,2675.4,2.8053999]
[1645990375247,0.3146,2677.0,2675.4,2.8053999]
[1645990375448,0.3146,2676.8,2675.4,2.8053999]
[1645990375646,3.5,2677.0,2675.4,2.8053999]
[1645990375647,0.3146,2676.6,2675.4,1.8703399]
[1645990375850,3.8146,2676.6,2675.4,1.8703399]
[1645990376053,0.1492,2676.5,2675.4,1.8703399]
[1645990376249,3.6492,2676.9,2675.4,1.8703399]
[1645990376454,0.01222959,2676.2,2675.3,0.25]
[1645990376649,11.06,2676.0,2675.3,0.25]
[1645990376850,0.439,2675.9,2674.7,2.8907]
[1645990377048,0.439,2675.9,2674.7,3.1407]
[1645990377049,0.3646,2675.8,2674.7,3.1407]
[1645990377449,0.1494,2676.0,2674.7,3.1407]
[1645990377751,0.9994,2676.1,2675.3,1.26939991]
[1645990378006,0.9994,2676.1,2674.7,3.1407]
[1645990378007,5.0,2675.8,2674.7,0.25]
[1645990378216,0.22016886,2675.6,2674.7,0.25]
[1645990378406,11.4246,2675.1,2674.7,0.25]
[1645990378613,0.8036,2675.1,2674.7,0.25]
[1645990378811,0.80205386,2675.1,2673.9,0.25]
[1645990379009,0.80205386,2675.1,2674.5,1.25355716]
[1645990379210,0.80205386,2675.1,2674.0,0.1510496]
[1645990379410,0.8036,2675.1,2674.0,0.1510496]
[1645990379612,0.439,2675.1,2674.1,0.93578]
[1645990379810,1.00639148,2675.4,2674.1,0.93578]
[1645990380010,0.00639148,2675.4,2674.1,0.93578]
[1645990380212,0.439,2675.8,2675.1,1.36384404]
[1645990380413,45.91035606,2676.3,2673.9,0.26298564]
[1645990380414,0.66307596,2676.3,2675.7,1.34700479]
[1645990380617,0.88521466,2676.7,2675.2,0.4853471]
[1645990380618,0.8084134,2675.5,2675.2,0.4853471]
[1645990380812,0.8084134,2675.5,2675.3,1.01330921]
[1645990381413,3.89807596,2676.9,2675.5,0.3646]
[1645990381414,2.03734596,2676.9,2675.5,0.3646]
[1645990381665,0.88521466,2677.1,2675.7,0.9351863]
[1645990381666,1.56803995,2676.8,2675.7,0.9351863]
[1645990381854,1.56803995,2676.7,2675.8,0.93513]
[1645990382152,1.2111,2677.2,2675.8,0.93513]
[1645990382353,1.56989184,2677.1,2675.9,0.3646]
[1645990382552,1.56989184,2677.1,2676.2,1.86986]
[1645990382753,1.46989184,2677.3,2676.2,1.86986]
[1645990382952,3.5,2677.2,2676.2,1.86986]
[1645990383153,3.5,2677.2,2676.0,0.25]
[1645990383154,0.66307596,2677.0,2676.0,0.25]
[1645990383352,0.3646,2676.9,2676.0,0.25]
[1645990383552,1.10207596,2677.1,2676.1,1.21889086]
[1645990383553,0.3646,2677.0,2676.1,1.21889086]
[1645990383757,11.499,2677.1,2676.1,1.21889086]
[1645990383758,0.439,2677.1,2676.1,1.21889086]
[1645990383953,0.439,2677.1,2676.1,2.15392086]
[1645990384356,0.439,2677.1,2676.6,1.3176988]
[1645990384556,0.439,2677.1,2676.1,1.08443]
[1645990384754,4.96667596,2677.1,2676.1,2.01934]
[1645990384956,1.091,2677.0,2676.1,2.01934]
[1645990385387,0.00638809,2676.7,2676.2,0.9349683]
[1645990385592,0.00638809,2676.7,2676.5,1.17471854]
[1645990385794,0.00638809,2676.7,2676.2,0.9349683]
[1645990386002,0.66307596,2677.4,2676.2,0.9349683]
[1645990386198,0.66307596,2677.4,2676.1,12.92994]
[1645990386199,3.5,2677.5,2676.1,1.86994]
[1645990386401,3.5,2677.5,2676.0,2.1199558]
[1645990386402,0.3646,2677.1,2676.0,0.25]
[1645990386699,0.3646,2677.1,2675.4,0.5]
[1645990386700,0.34556193,2675.8,2675.4,0.5]
[1645990386896,0.34556193,2675.8,2674.3,0.00104514]
[1645990386897,0.2627429,2675.7,2674.3,0.00104514]
[1645990387107,11.4246,2675.6,2674.0,1.70920745]
[1645990387298,11.06,2675.4,2674.0,0.00166231]
[1645990387497,0.439,2675.5,2674.0,0.00166231]
[1645990387498,0.3646,2675.2,2674.1,0.1495]
[1645990387698,1.3646,2675.4,2674.2,1.8712581]
[1645990387896,0.439,2675.3,2674.4,1.34185852]
[1645990388097,0.439,2675.4,2674.2,0.93563]
[1645990388498,3.49845807,2675.3,2674.2,0.93563]
[1645990388698,3.49845807,2675.3,2673.9,0.1495]
[1645990388699,11.4246,2674.7,2673.9,0.1495]
[1645990388898,0.3646,2674.5,2674.0,0.00255102]
[1645990389149,5.0,2675.1,2674.0,0.00255102]
[1645990389150,0.3646,2674.3,2674.0,0.00255102]
[1645990389349,0.439,2674.2,2674.1,0.1494]
[1645990389551,0.8036,2674.2,2674.0,0.00255102]
[1645990389749,11.8636,2674.2,2673.8,0.1494]
[1645990389951,13.73597,2674.2,2673.2,0.1494]
[1645990390154,3.26137,2674.2,2673.2,0.1496]
[1645990390351,1.0,2674.5,2673.2,0.1496]
[1645990390555,1.0,2674.5,2673.1,0.1494]
[1645990390556,1.0,2674.2,2673.1,0.1494]
[1645990390760,1.0,2674.2,2672.9,0.0003]
[1645990390761,11.06,2674.0,2672.9,0.0003]
[1645990390960,11.06,2672.8,2672.4,0.06]
[1645990391153,11.4246,2672.6,2672.4,0.06]
[1645990391353,12.0,2672.4,2671.3,0.0501]
[1645990391554,11.8636,2672.3,2671.4,0.1496]
[1645990391758,12.4246,2672.3,2671.4,0.0996]
[1645990391954,12.41294312,2672.3,2670.7,2.66343238]
[1645990392152,1.30163,2672.1,2671.4,0.1497]
[1645990392354,0.18134613,2671.3,2670.9,1.38708141]
[1645990392554,0.18134613,2671.3,2670.8,0.1497]
[1645990392751,0.18134613,2671.3,2671.0,0.1497]
[1645990393008,1.0,2672.0,2670.7,0.1497]
[1645990393209,3.5,2672.4,2670.7,0.7865993]
[1645990393210,0.93679,2672.3,2670.7,0.7865993]
[1645990393411,41.90512602,2672.2,2671.0,1.28928875]
[1645990393609,11.42271288,2671.9,2671.1,0.1497]
[1645990393811,11.42271288,2671.9,2671.1,0.00986456]
[1645990393812,11.42271288,2671.7,2671.1,0.00986456]
[1645990394110,36.03186304,2671.8,2670.8,0.00749782]
[1645990394111,7.0,2671.4,2670.8,0.00749782]
[1645990394312,15.93641,2671.3,2670.8,0.00749782]
[1645990394514,20.0,2671.1,2669.9,0.5]
[1645990394713,43.10191433,2671.2,2670.0,0.027]
[1645990394714,11.06,2670.7,2670.0,0.027]
[1645990394917,1.87519,2670.8,2669.4,0.1080773]
[1645990394918,0.439,2670.6,2669.4,0.1080773]
[1645990395114,0.1464,2671.1,2669.4,0.1080773]
[1645990395414,3.98848469,2671.8,2669.7,2.8108994]
[1645990395415,0.439,2671.8,2669.7,2.8108994]
[1645990395614,1.87394,2672.4,2670.4,5.0]
[1645990395814,1.36649997,2672.7,2671.0,1.2225648]
[1645990395815,0.7765416,2672.2,2671.0,1.2225648]
[1645990396017,2.53024364,2672.8,2671.2,5.0]
[1645990396214,2.53024364,2672.8,2672.7,1.12739416]
[1645990396415,0.72560183,2672.2,2672.1,2.28452862]
[1645990396855,0.72560183,2672.2,2672.1,1.34822272]
[1645990397049,0.72560183,2672.2,2671.8,0.25]
[1645990397254,0.72560183,2672.2,2671.1,0.25]
[1645990397255,0.439,2672.1,2671.1,0.25]
[1645990397450,0.439,2672.1,2669.7,1.13570313]
[1645990397451,0.35500886,2671.7,2670.3,3.5]
[1645990397650,0.35500886,2671.7,2671.6,0.00140357]
[1645990398051,0.35500886,2671.7,2671.6,1.38893277]
[1645990398450,0.35500886,2671.7,2671.6,1.3875292]
[1645990398853,0.72560183,2672.2,2671.7,14.855]
[1645990399361,0.00627051,2672.7,2671.8,12.5]
[1645990399552,0.93645,2673.2,2671.8,12.5]
[1645990399553,0.1496,2672.6,2671.8,12.5]
[1645990399756,0.1496,2672.6,2671.8,15.30846]
[1645990399951,3.0,2674.0,2672.6,1.14672046]
[1645990399952,0.00627122,2672.7,2672.6,1.14672046]
[1645990400152,0.00627122,2672.7,2671.7,6.0215]
[1645990400392,0.00627122,2672.7,2671.3,0.25]
[1645990400600,0.00627122,2672.7,2670.8,3.7451566]
[1645990400798,0.4765,2672.6,2670.8,0.25]
[1645990401003,5.0,2671.3,2670.8,0.25]
[1645990401200,0.93757,2670.9,2670.1,0.25087093]
[1645990401401,0.439,2670.8,2670.1,0.00087093]
[1645990401806,3.02484,2671.0,2670.1,0.00087093]
[1645990401807,1.0,2671.0,2670.1,0.00087093]
[1645990402200,45.95407303,2671.4,2670.1,0.00087093]
[1645990402500,1.08685,2671.3,2670.4,1.42251112]
[1645990402703,1.08685,2671.3,2670.1,0.00087093]
[1645990402704,11.06,2671.1,2670.2,0.00777145]
[1645990403003,11.06,2671.1,2669.7,0.3713]
[1645990403004,10.5,2670.6,2669.7,0.32807783]
[1645990403204,0.439,2670.5,2669.7,0.32807783]
[1645990403401,0.01263547,2670.7,2669.7,0.32807783]
[1645990403402,0.93775,2670.3,2669.7,0.32807783]
[1645990403806,0.5798,2670.2,2669.7,0.32807783]
[1645990404160,0.5814,2670.2,2669.8,0.1497]
[1645990404346,0.439,2670.2,2669.8,0.1497]
[1645990404745,0.5798,2670.2,2669.8,0.1497]
[1645990404949,0.439,2670.2,2669.8,0.1497]
[1645990405351,2.81351,2670.1,2669.8,0.1497]
[1645990405549,2.81351,2670.1,2669.4,0.075]
[1645990405550,26.06,2670.1,2669.4,0.075]
[1645990405752,0.439,2670.2,2669.4,0.075]
[1645990405753,0.93792,2669.9,2669.4,0.075]
[1645990405950,0.439,2669.8,2669.4,0.075]
[1645990406152,0.5478,2669.8,2669.4,0.075]
[1645990406352,0.1904,2669.7,2669.4,0.075]
[1645990406555,0.168,2669.7,2669.4,0.075]
[1645990406755,0.93792,2669.9,2669.4,0.075]
[1645990406954,45.61554981,2669.7,2669.4,0.075]
[1645990407453,46.61554981,2669.7,2669.4,0.075]
[1645990407676,47.05454981,2669.7,2669.4,0.075]
[1645990407896,47.05454981,2669.7,2667.8,1.87559]
[1645990407897,20.0,2669.4,2667.8,1.87559]
[1645990408198,0.93792,2669.5,2667.3,0.51200094]
[1645990408199,0.23007315,2668.8,2667.4,0.3713]
[1645990408400,0.23377167,2669.5,2668.3,1.15359449]
[1645990408597,0.23377167,2669.5,2668.1,1.81049649]
[1645990408598,3.75275,2669.6,2668.2,0.04149492]
[1645990408796,1.87584,2669.3,2668.2,0.04149492]
[1645990409011,0.01220558,2669.9,2668.2,3.54149492]
[1645990409202,0.439,2669.7,2668.2,0.04149492]
[1645990409405,0.00687542,2670.1,2668.5,5.0]
[1645990409609,6.87786487,2671.1,2669.4,5.0]
[1645990409610,0.8151,2671.1,2669.4,5.0]
[1645990409810,11.75152205,2672.0,2668.7,20.0]
[1645990409811,0.5,2671.8,2669.7,6.20970045]
[1645990410010,0.5,2671.8,2669.9,0.3646]
[1645990410206,0.1497,2672.1,2669.9,0.3646]
[1645990410207,1.08662,2672.1,2670.0,3.51258469]
[1645990410406,1.08662,2672.1,2670.6,0.01284723]
[1645990410612,0.93692,2672.1,2670.0,3.51288067]
[1645990410808,3.5,2672.0,2669.9,0.93721]
[1645990411010,3.5,2672.0,2670.0,0.937168]
[1645990411011,54.65998307,2671.9,2670.0,0.937168]
[1645990411206,54.65998307,2671.9,2669.9,0.93721]
[1645990411207,0.93719,2671.4,2669.9,0.93721]
[1645990411408,0.93719,2671.4,2668.3,0.04092649]
[1645990411409,5.0,2670.0,2668.3,0.04092649]
[1645990411684,11.06,2669.3,2668.3,0.04092649]
[1645990411880,8.02083472,2669.4,2668.3,0.04092649]
[1645990411881,0.439,2669.2,2668.3,0.04092649]
[1645990412083,0.439,2669.2,2669.1,1.26922476]
[1645990412283,1.37688,2669.2,2667.7,0.9566829]
[1645990412681,1.37688,2669.2,2667.7,0.0188026]
[1645990412880,1.37688,2669.2,2668.5,0.00215686]
[1645990413083,1.32688,2669.2,2668.5,0.00215686]
[1645990413283,3.5,2669.1,2668.5,0.00215686]
[1645990413481,0.439,2669.0,2668.5,0.00215686]
[1645990413882,11.06,2668.9,2668.6,0.00215682]
[1645990414082,11.06,2668.7,2668.6,0.00215682]
[1645990414284,0.93808,2669.0,2668.8,1.23170958]
[1645990414484,2.52883472,2669.4,2668.6,0.00215682]
[1645990414485,0.439,2668.9,2668.6,0.00215682]
[1645990414784,2.52883472,2669.4,2668.2,16.5]
[1645990414785,0.1504,2669.3,2668.2,16.5]
[1645990414986,2.52883472,2669.4,2668.6,0.00215679]
[1645990415181,0.439,2669.3,2668.6,0.00215679]
[1645990415419,0.439,2669.3,2669.2,1.04179781]
[1645990415607,0.439,2669.3,2668.6,0.00215679]
[1645990415809,0.439,2669.3,2668.4,0.93772]
[1645990416210,0.439,2669.3,2668.2,3.1777592]
[1645990416211,0.1576,2669.2,2668.2,1.87542]
[1645990416422,0.1576,2669.2,2668.1,1.34394753]
[1645990416423,27.23186304,2669.1,2668.1,1.34394753]
[1645990416614,0.3646,2668.8,2668.1,1.34394753]
[1645990416812,11.4246,2668.5,2668.1,1.34394753]
[1645990417012,11.06,2668.3,2668.1,1.34394753]
[1645990417210,0.8036,2668.4,2668.1,1.34394753]
[1645990417211,0.439,2668.2,2668.1,1.34394753]
[1645990417514,2.02244,2668.3,2668.2,0.00185466]
[1645990417709,2.31584,2668.3,2668.2,0.00185466]
[1645990418214,0.439,2668.3,2668.2,0.00185466]
[1645990418609,0.439,2668.3,2668.1,1.34394753]
[1645990418808,0.3646,2668.7,2668.1,1.34394753]
[1645990418809,11.06,2668.6,2668.1,2.6046311]
[1645990419008,2.31555,2668.7,2668.1,2.6046311]
[1645990419245,0.439,2668.7,2668.6,1.13442317]
[1645990419446,0.439,2668.7,2668.1,1.34394753]
[1645990419645,0.45264469,2669.2,2668.1,1.34394753]
[1645990419847,0.45264469,2669.2,2668.2,0.3646]
[1645990420051,0.45264469,2669.2,2668.4,0.93776]
[1645990420246,0.01364469,2669.2,2668.4,0.93776]
[1645990420445,0.01364469,2669.2,2668.5,1.2777546]
[1645990420649,0.01364469,2669.2,2668.5,1.6423546]
[1645990420847,0.01364469,2669.2,2668.1,1.34394753]
[1645990421047,0.01364469,2669.2,2668.5,0.00594389]
[1645990421048,11.06,2669.0,2668.5,0.00594389]
[1645990421250,0.439,2668.9,2668.5,0.00594389]
[1645990421849,0.439,2668.9,2668.4,1.23034865]
[1645990422250,0.439,2668.9,2668.4,1.23629276]
[1645990422654,0.439,2668.9,2668.4,0.00594411]
[1645990422915,11.2304,2668.8,2668.4,0.00594411]
[1645990423101,11.06,2668.6,2668.1,1.34394753]
[1645990423310,12.09806169,2668.6,2668.1,1.34394753]
[1645990423508,12.09806169,2668.6,2668.4,0.00594422]
[1645990423509,0.25846545,2668.5,2668.4,0.00594422]
[1645990423707,0.5822,2668.6,2668.4,0.00594422]
[1645990423708,0.1432,2668.6,2668.4,0.00594422]
[1645990423906,0.1497,2669.0,2668.9,1.43175362]
[1645990424111,0.1497,2669.0,2668.4,0.00594422]
[1645990424112,0.439,2669.0,2668.4,0.00594422]
[1645990424408,0.439,2669.0,2668.2,0.00080666]
[1645990424609,0.439,2669.0,2668.7,0.00594355]
[1645990425107,0.00833562,2669.1,2668.8,1.08467265]
[1645990425709,0.00833562,2669.1,2668.9,0.1497]
[1645990426110,0.00833562,2669.1,2668.8,0.1497]
[1645990426309,0.00833562,2669.1,2668.7,0.00594355]
[1645990426510,0.00153448,2668.4,2668.2,0.00080666]
[1645990426747,0.00153448,2668.4,2668.3,1.19825359]
[1645990427146,0.00153448,2668.4,2668.3,1.71275359]
[1645990427352,0.00153448,2668.4,2668.3,1.34815359]
[1645990427552,0.00153448,2668.4,2668.3,1.19825359]
[1645990428059,0.00153448,2668.4,2668.2,0.93864666]
[1645990428060,0.00153448,2668.4,2668.2,0.00080666]
[1645990428254,0.00153448,2668.4,2667.4,0.34090926]
[1645990428651,0.1499,2668.3,2667.4,0.34090926]
[1645990428852,0.00153448,2668.4,2667.5,19.0]
[1645990429153,0.00153448,2668.4,2667.6,0.3646]
[1645990429353,0.00153448,2668.4,2667.6,1.58012857]
[1645990429554,0.00153448,2668.4,2667.6,1.58542051]
[1645990429955,0.00153448,2668.4,2668.1,0.2646]
[1645990430158,0.00153448,2668.4,2668.3,0.2646]
[1645990430400,3.448e-05,2668.4,2668.3,0.2646]
[1645990430797,3.448e-05,2668.4,2668.3,0.5646]
[1645990430999,3.448e-05,2668.4,2668.3,0.5146]
[1645990431400,3.448e-05,2668.4,2668.3,5.5146]
[1645990431599,3.448e-05,2668.4,2668.3,16.5746]
[1645990431999,0.00832013,2668.9,2668.5,0.2646]
[1645990432201,0.00832013,2668.9,2668.4,20.0]
[1645990432202,0.00832013,2668.9,2668.4,0.3646]
[1645990432400,0.00832013,2668.9,2668.0,0.4937077]
[1645990432600,0.00832013,2668.9,2668.1,5.0]
[1645990432900,0.00832013,2668.9,2668.2,0.9377014]
[1645990433301,2.52883472,2669.4,2668.3,1.70272322]
[1645990433502,2.52883472,2669.4,2669.1,1.2152241]
[1645990434164,0.1499,2669.7,2669.3,13.8646]
[1645990435163,0.1499,2669.7,2669.1,1.87465]
[1645990435366,0.1499,2669.7,2668.4,6.1095]
[1645990435571,0.439,2669.6,2667.8,3.74978]
[1645990435777,0.1499,2669.7,2668.1,5.3]
[1645990435969,0.1497,2669.5,2668.3,3.2321]
[1645990436269,0.1497,2669.5,2668.2,0.3]
[1645990436270,11.06,2669.4,2668.2,1.87533]
[1645990436470,11.06,2669.0,2668.1,1.0]
[1645990436671,11.4246,2668.4,2668.1,1.0]
[1645990436867,0.3646,2668.4,2668.1,1.00301179]
[1645990437270,1.37711,2668.6,2668.1,1.00301179]
[1645990437468,3.8646,2668.5,2668.1,1.00301179]
[1645990437668,4.04685093,2668.5,2668.1,1.0]
[1645990437895,0.439,2668.6,2668.1,1.0]
[1645990438098,0.26605957,2668.5,2668.1,1.00501971]
[1645990438302,12.43718,2668.4,2668.1,1.00501971]
[1645990438502,15.1338864,2668.3,2668.1,1.00501971]
[1645990438703,0.439,2668.2,2668.1,1.00501971]
[1645990439307,11.499,2668.2,2668.1,1.0]
[1645990439508,0.439,2668.2,2668.1,1.0]
[1645990439809,0.3646,2668.5,2668.1,1.0]
[1645990440006,0.57719997,2668.9,2668.1,1.0]
[1645990440405,0.00638636,2668.7,2668.1,1.0]
[1645990440608,0.00638636,2668.7,2668.5,1.15252154]
[1645990440812,0.00638636,2668.7,2668.1,1.0]
[1645990441406,0.1499,2669.3,2668.1,1.3646]
[1645990441659,0.00638696,2668.7,2668.1,1.36961962]
[1645990441849,0.00638696,2668.7,2668.3,1.03171522]
[1645990442452,3.5,2669.5,2668.3,1.96941942]
[1645990442653,0.00868932,2669.6,2669.0,1.06335579]
[1645990442855,0.00638719,2668.7,2668.3,1.39100596]
[1645990443054,8.46e-06,2668.8,2668.5,15.5]
[1645990443257,8.46e-06,2668.8,2668.5,15.8]
[1645990443558,8.46e-06,2668.8,2668.6,1.30212]
[1645990443753,8.46e-06,2668.8,2668.6,0.93752]
[1645990443954,8.46e-06,2668.8,2668.3,2.1752111]
[1645990444255,8.46e-06,2668.8,2668.3,7.1752111]
[1645990444453,8.46e-06,2668.8,2668.4,0.3646]
[1645990444654,8.46e-06,2668.8,2668.4,0.6646]
[1645990444854,8.46e-06,2668.8,2668.3,2.8129311]
[1645990445254,1.0,2668.7,2668.3,2.8183496]
[1645990445496,1.0,2668.7,2668.4,0.3646]
[1645990445901,1.0,2668.7,2668.5,1.08225067]
[1645990446505,1.0,2668.7,2668.4,0.9375978]
[1645990446701,0.00639548,2668.8,2668.3,0.0054186]
[1645990447300,8.46e-06,2668.8,2668.1,0.9554186]
[1645990447704,1.0,2668.6,2668.3,0.0054186]
[1645990448105,0.85,2668.6,2668.3,0.0054186]
[1645990448505,0.85,2668.6,2668.3,0.3646]
[1645990448711,5.046e-05,2668.7,2668.5,0.3646]
[1645990448908,5.046e-05,2668.7,2668.3,12.5976712]
[1645990448909,5.046e-05,2668.7,2668.6,0.3646]
[1645990449150,5.046e-05,2668.7,2668.6,0.6646]
[1645990449349,5.046e-05,2668.7,2668.3,0.9376712]
[1645990449754,5.046e-05,2668.7,2668.3,1.2376712]
[1645990449953,5.046e-05,2668.7,2668.4,0.93744]
[1645990450252,8.737e-05,2668.6,2668.4,1.23744]
[1645990450452,1.32484298,2669.8,2668.8,0.937544]
[1645990450853,1.32484298,2669.8,2668.4,0.6]
[1645990451451,1.32484298,2669.8,2668.4,0.3646]